Cogmind - Beta 15 @@@ ROGUE MODE // 2025.07.24 @ 02:55:00 Player: shapeshifter Result: Destroyed by Y-54 Guardian with Flak Gun Performance ------------- Evolutions (4) 2000 Regions Visited (12) 2400 Robots Destroyed (130) 650 Value Destroyed (5787) 5787 Prototype IDs (4) 80 Alien Tech Used (0) 0 Bonus (2508) 2508 TOTAL SCORE: 13425 Bonus ------- High Alert Combat Kills 612 Follower Combat Kills 296 Entered Garrisons 600 Used RIF Installer 1000 Cogmind --------- Core Integrity 0/850 Matter 111/300 Energy 99/100 System Corruption 5% Temperature Warm (154) Movement Core (1150) Ox22 Location -6/Garrison Parts ------- > --- POWER (2) -------- (None) > --- PROPULSION (4) --- (None) > --- UTILITY (7) ------ Large Storage Unit High-capacity Storage Unit Advanced Targeting Computer Relay Coupler [Hunter] (3) > --- WEAPON (2) ------- Gauss Rifle Mini Assault Cannon > --- INVENTORY (20) --- Fission Core Improved Heat Sink Improved Heat Sink Advanced Cooling System Improved Launcher Guidance Computer Matter Filter Relay Coupler [Swarmer] (22) Relay Coupler [Swarmer] (28) Relay Coupler [Brawler] (26) Relay Coupler [Duelist] (25) Relay Coupler [Specialist] (23) Relay Coupler [Hunter] (19) Relay Coupler [Behemoth] (9) Improved Datajack Remote Datajack Remote Datajack Peak State ------------ > --- POWER ------------ Improved Deuterium Engine Light Fission Core > --- PROPULSION ------- Advanced Treads Improved Medium Treads Armored Huge Wheel > --- UTILITY ---------- Improved Heat Sink High-capacity Storage Unit Advanced Targeting Computer Matter Filter Improved Light Armor Plating Improved Medium Armor Plating Medium Reactive Plating > --- WEAPON ----------- Ion Cannon Flak Gun > --- INVENTORY -------- Light Nuclear Core Light Fission Core Light Treads Light Treads Improved Heat Sink Improved Heat Sink Advanced Cooling System Large Storage Unit Improved Launcher Guidance Computer Improved Light Armor Plating Relay Coupler [Swarmer] Relay Coupler [Swarmer] Relay Coupler [Brawler] Relay Coupler [Duelist] Relay Coupler [Sentry] Relay Coupler [Hunter] Mini Assault Cannon Mini Assault Cannon Improved Datajack Remote Datajack [Rating: 61] Favorites ----------- Power Light Nuclear Core Engine Light Ion Engine Power Core Light Nuclear Core Propulsion Advanced Treads Treads Advanced Treads Leg Improved Aluminum Leg Wheel Armored Wheel Utility Advanced Targeting Computer Device Improved Heat Sink Storage Large Storage Unit Processor Advanced Targeting Computer Hackware Relay Coupler [Hunter] Protection Improved Light Armor Plating Weapon Heavy Rocket Launcher Energy Gun Particle Gun Energy Cannon Improved EM Pulse Cannon Ballistic Gun High-powered Shotgun Ballistic Cannon Mini Assault Cannon Launcher Heavy Rocket Launcher Special Weapon Remote Datajack Impact Weapon Power Maul Special Melee Weapon Improved Datajack Build | -11 -10 -9 -9 -8 -8 -8 -7 -7 -7 -7 -6 -6 ------- Run | Yrd Mat Mat Min Mat Gar Mat Fac Was Fac Gar Fac Gar Slots Evolved 8 | . . 2 . 2 . . 2 . . . 2 . Power 1 | . . . . . . . . . . . 1 . Propulsion 2 | . . 1 . . . . 1 . . . . . Utility 5 | . . 1 . 2 . . 1 . . . 1 . Weapon . | . . . . . . . . . . . . . Parts Attached 122 | 8 4 9 6 14 15 5 8 . 14 19 12 8 Power 13 | 1 1 1 . . 1 . . . 1 2 4 2 Engine 5 | 1 1 1 . . . . . . . 1 1 . Core 8 | . . . . . 1 . . . 1 1 3 2 Reactor . | . . . . . . . . . . . . . Propulsion 32 | 2 2 3 2 4 2 3 3 . 2 4 3 2 Treads 18 | 2 . . . 4 2 3 2 . . 3 2 . Leg 7 | . 2 2 . . . . . . . . 1 2 Wheel 7 | . . 1 2 . . . 1 . 2 1 . . Hover . | . . . . . . . . . . . . . Flight . | . . . . . . . . . . . . . Utility 45 | 2 1 1 2 7 7 1 5 . 5 8 4 2 Device 8 | 1 . 1 . 1 1 . 1 . . 2 . 1 Storage 4 | 1 1 . . 1 . . 1 . . . . . Processor 4 | . . . . 3 . 1 . . . . . . Hackware 5 | . . . . . . . . . 1 2 1 1 Protection 24 | . . . 2 2 6 . 3 . 4 4 3 . Artifact . | . . . . . . . . . . . . . Weapon 32 | 3 . 4 2 3 5 1 . . 6 5 1 2 Energy Gun 13 | 2 . 3 . 3 1 . . . 2 1 . 1 Energy Cannon 3 | . . . . . . 1 . . 1 1 . . Ballistic Gun 6 | 1 . 1 . . 1 . . . 1 1 . 1 Ballistic Cannon 3 | . . . . . . . . . 1 1 1 . Launcher 3 | . . . 1 . 2 . . . . . . . Special Weapon 2 | . . . 1 . . . . . 1 . . . Impact Weapon 1 | . . . . . 1 . . . . . . . Slashing Weapon . | . . . . . . . . . . . . . Piercing Weapon . | . . . . . . . . . . . . . Special Melee Weapon 1 | . . . . . . . . . . 1 . . Unidentified Prototypes 2 | . . . . . . . . . 2 . . . Parts Lost 60 | . . 10 4 1 6 1 . 2 1 14 5 16 Power 8 | . . 1 1 . 1 . . . . 1 . 4 Propulsion 18 | . . 3 1 . 1 1 . 1 1 4 1 5 Utility 21 | . . 1 1 1 3 . . 1 . 6 4 4 Weapon 13 | . . 5 1 . 1 . . . . 3 . 3 Highest Loss Streak 9 | . . 3 5 1 2 1 . 2 1 9 3 7 To Critical Strikes . | . . . . . . . . . . . . . Average Backups 14 | 3 8 12 11 13 13 14 17 19 18 16 18 17 Power . | . 1 1 . . . . . 1 1 2 2 1 Propulsion 1 | 1 2 2 2 3 4 1 1 1 . . . . Utility 8 | . 2 6 8 9 6 7 9 10 7 8 12 11 Weapon 3 | . 1 1 . . 2 4 5 6 6 3 2 1 Tool/Special . | . . . . . . . . . . . . . Unused Backups 35 | . . . . 2 6 2 1 . 3 5 3 13 Power 6 | . . . . . . . . . 1 1 3 1 Propulsion 2 | . . . . 1 . 1 . . . . . . Utility 21 | . . . . 1 5 1 1 . 1 1 . 11 Weapon 5 | . . . . . 1 . . . 1 3 . . Tool/Special 1 | . . . . . . . . . . . . 1 Average Slot Usage (%) 87 | . 98 86 42 97 96 100 99 87 99 70 91 65 Engine 2 | . 14 10 2 9 . . . . . 1 3 . Core 6 | . . . . . 7 9 7 7 7 3 9 11 Treads 16 | . 21 . . 23 25 27 27 25 21 9 13 2 Leg 3 | . 5 28 . . . . . . . . 2 7 Wheel 2 | . . . 14 3 . . 2 2 7 5 3 . Device 8 | . 14 17 . 6 9 9 7 7 7 4 9 4 Storage 8 | . 14 11 11 9 9 9 7 7 7 7 6 10 Processor 6 | . . . . 8 9 9 7 7 7 7 6 6 Hackware 1 | . . . . . . . . . 1 8 2 4 Protection 12 | . . . 3 20 16 18 22 15 21 6 19 3 Energy Gun 5 | . 14 14 . 10 11 2 . . . 2 . 2 Energy Cannon 2 | . . . . . . 6 7 4 5 3 3 2 Ballistic Gun 2 | . 14 3 . . 2 . . . 5 . 5 . Ballistic Cannon 1 | . . . . . . . . . . 3 . 6 Launcher 2 | . . . 8 6 3 9 7 7 1 1 . . Peak Build Rating 61 | 7 11 15 13 31 39 41 45 44 46 45 61 60 Average Rating 33 | 5 7 12 6 27 30 39 43 37 44 36 56 42 On Entrance 28 | . 7 11 8 13 31 39 41 44 27 45 45 54 Naked Turns . | . . . . . . . . . . . . . Heaviest Build 107 | 12 29 33 39 42 76 80 107 73 84 81 101 94 Greatest Support 94 | 40 40 39 44 84 78 79 94 88 22 28 52 52 Greatest Overweight (x) 23 | . 9 2 2 . . 1 6 3 6 23 6 5 Average Overweight (x) 1 | . . . . . . . 2 1 5 3 2 3 Largest Inventory Capacity 20 | 8 15 15 15 15 15 15 20 20 20 20 20 20 Average Capacity 17 | 7 10 15 15 15 15 15 19 20 20 20 20 20 Most Carried 20 | 5 15 14 15 15 15 15 20 20 20 20 20 20 Average Carried 15 | 3 8 12 12 14 13 14 17 19 18 16 18 17 Final Capacity 20 | 8 15 15 15 15 15 15 20 20 20 20 20 20 Final Carried 20 | 4 15 13 12 15 15 15 20 19 20 20 17 16 Class Distribution -------------------- 67% | Mutant 25% | Bothacker-Mutant 6% | Scavenger-Mutant Dominant Class ---------------- Mutant | -10/Materials Mutant | -9/Materials Mutant | -9/Mines Mutant | -8/Materials Mutant | -8/Garrison Mutant | -8/Materials Mutant | -7/Factory Mutant | -7/Waste Mutant | -7/Factory Bothacker-Mutant | -7/Garrison Bothacker-Mutant | -6/Factory Bothacker-Mutant | -6/Garrison Resources | -11 -10 -9 -9 -8 -8 -8 -7 -7 -7 -7 -6 -6 ----------- Run | Yrd Mat Mat Min Mat Gar Mat Fac Was Fac Gar Fac Gar Matter Collected 3415 | 265 . 235 62 204 675 251 186 . 510 523 236 268 Remotely . | . . . . . . . . . . . . . Salvage Created 3968 | 42 . 458 8 460 898 372 440 . 283 520 142 345 Parts 208 | 5 . 32 2 23 45 17 20 . 23 25 2 14 Haulers Intercepted 4 | . . 1 . 1 . 1 1 . . . . . Recyclers Shooed 2 | . . . . 2 . . . . . . . . Parts Field Recycled . | . . . . . . . . . . . . . Retrieved Matter . | . . . . . . . . . . . . . Parts Self-Destructed . | . . . . . . . . . . . . . Prevented . | . . . . . . . . . . . . . Kills | -11 -10 -9 -9 -8 -8 -8 -7 -7 -7 -7 -6 -6 ------- Run | Yrd Mat Mat Min Mat Gar Mat Fac Was Fac Gar Fac Gar Combat Hostiles Destroyed 104 | . . 12 1 7 31 8 10 . 6 16 3 10 Guns 42 | . . 11 . 3 18 1 . . 1 4 3 1 Cannons 27 | . . . . . . 4 4 . 2 8 . 9 AOE 32 | . . 1 1 3 11 3 6 . 3 4 . . Classes Destroyed 14 | 1 . 7 . 1 2 . 1 . . 2 . . Worker 2 | . . . . . . . 2 . . . . . Builder 6 | . . . . 2 . . . . 4 . . . Tunneler 3 | 2 . . . . . 1 . . . . . . Hauler 4 | . . 1 . 1 . 1 1 . . . . . Recycler 2 | . . 1 . 1 . . . . . . . . Operator 1 | . . 1 . . . . . . . . . . Watcher 8 | . . 2 . 3 . 1 1 . 1 . . . Swarmer 23 | . . 9 1 . 7 . . . . 6 . . Grunt 45 | . . 2 . 3 12 6 9 . . 6 2 5 Sentry 23 | . . 1 . 4 8 2 1 . 1 2 1 3 Specialist 1 | . . . . . . . . . . 1 . . Hunter 5 | . . . . . 1 . . . 3 . . 1 Programmer 6 | . . . . . 3 . . . 2 . . 1 Behemoth 1 | . . . . . . . . . . 1 . . Best Kill Streak 7 | 1 . 4 1 7 4 6 6 . 5 4 2 3 Combat Bots Only 4 | . . 4 1 3 4 4 4 . 2 4 2 3 Max Kills in Single Turn 4 | 1 . 1 1 1 3 1 4 . 2 2 1 1 Gunslinging . | . . . . . . . . . . . . . Exploded 3 | . . 1 1 1 2 1 3 . 1 2 . . Melee . | . . . . . . . . . . . . . Uniques/NPCs Destroyed . | . . . . . . . . . . . . . Combat | -11 -10 -9 -9 -8 -8 -8 -7 -7 -7 -7 -6 -6 -------- Run | Yrd Mat Mat Min Mat Gar Mat Fac Was Fac Gar Fac Gar Hostile Shots Fired 1380 | . . 134 33 37 164 87 32 2 80 232 200 379 Missed 438 | . . 32 11 10 55 39 13 . 31 69 59 119 Hits 942 | . . 102 22 27 109 48 19 2 49 163 141 260 Melee 2 | . . . . . . . . 2 . . . . Projectile 940 | . . 102 22 27 109 48 19 . 49 163 141 260 Critical Strikes 28 | . . 1 . 3 4 5 . 2 1 5 4 3 Damage Taken 12015 | . . 1037 195 455 1686 646 223 101 811 2412 1723 2726 Core 2015 | . . 184 66 63 332 32 18 42 26 397 144 711 Absorbed by Shields . | . . . . . . . . . . . . . Redirected to Shielding 86 | . . . . . 86 . . . . . . . Ignored by Resistances 438 | . . . . . . 93 . . 131 102 112 . Regen/Repaired (Parts) 16 | . . 16 . . . . . . . . . . Core Remaining (%) 58 | 100 100 . 37 . . 22 . . . 31 . . Volleys Fired 390 | 9 1 84 1 28 89 19 13 . 29 48 18 51 Largest 2 | 2 2 2 1 2 2 2 2 . 2 2 2 2 Hottest 129 | 60 60 90 33 121 121 108 108 . 94 129 88 109 Shots Fired 653 | 18 2 115 1 50 168 27 20 . 48 82 30 92 Gun 388 | 18 2 115 . 36 131 9 . . 23 24 16 14 Cannon 170 | . . . . . . 10 13 . 16 41 12 78 Launcher 87 | . . . 1 14 37 8 7 . 7 13 . . Special 8 | . . . . . . . . . 2 4 2 . Kinetic 178 | 9 1 35 . . 10 . . . 17 24 23 59 Thermal 246 | 9 1 . . 36 121 9 . . . 32 5 33 Explosive 87 | . . . 1 14 37 8 7 . 7 13 . . Electromagnetic 134 | . . 80 . . . 10 13 . 22 9 . . Robot Hit Streak 21 | 2 2 4 . 9 21 8 15 . 3 9 6 18 Robot Miss Streak 8 | 2 1 8 1 3 4 1 1 . 5 6 4 5 Penetration Max . | . . . . . . . . . . . . . Secondary Targets 3 | . . . . . 3 . . . . . . . Max Gunslinging Chain 1 | . . . . . 1 . . . . . . . Shots Hit Robots 384 | 7 1 48 . 32 98 22 16 . 26 43 27 64 Core Hits 246 | 2 1 21 1 26 63 18 22 . 18 32 22 20 Critical Kills . | . . . . . . . . . . . . . Critical Parts Destroyed . | . . . . . . . . . . . . . Critical Strikes 17 | . . 1 . . 8 3 . . . . . 5 Burn 12 | . . . . . 8 3 . . . . . 1 Blast 4 | . . . . . . . . . . . . 4 Corrupt 1 | . . 1 . . . . . . . . . . Melee Attacks 4 | . . . . . . . . . . 2 . 2 Impact . | . . . . . . . . . . . . . Slashing . | . . . . . . . . . . . . . Piercing . | . . . . . . . . . . . . . Sneak Attacks . | . . . . . . . . . . . . . Combat Hostiles . | . . . . . . . . . . . . . Follow-up Attacks . | . . . . . . . . . . . . . Damage Inflicted 11814 | 86 17 838 53 1086 2845 994 1183 . 1120 1534 548 1510 Guns 3412 | 86 11 631 . 346 1316 123 . . 209 191 307 192 Cannons 3003 | . . . . . . 252 411 . 198 595 229 1318 Explosions 5349 | . . 207 53 740 1529 590 772 . 710 748 . . Melee . | . . . . . . . . . . . . . Ramming 50 | . 6 . . . . 29 . . 3 . 12 . Kinetic 2351 | 39 . 148 . . 30 . . . 149 387 489 1109 Thermal 2856 | 47 11 207 . 346 1286 123 . . 123 265 47 401 Explosive 5019 | . . . 53 740 1529 590 772 . 587 748 . . Electromagnetic 1538 | . . 483 . . . 252 411 . 258 134 . . Impact . | . . . . . . . . . . . . . Slashing . | . . . . . . . . . . . . . Piercing . | . . . . . . . . . . . . . Highest Corruption 6 | . 4 . . . 3 6 . . 1 2 3 5 Average Corruption 2 | . 3 . . . 2 5 . . 1 1 2 4 Corruption Purged . | . . . . . . . . . . . . . Corruption Blocked . | . . . . . . . . . . . . . Effects 43 | . 1 . . . 6 11 . . . 3 4 18 Message Errors 8 | . 1 . . . 1 1 . . . 1 1 3 Matter Fused 12 | . . . . . 3 2 . . . 2 . 5 Heat Flow Errors 5 | . . . . . 1 2 . . . . 1 1 Energy Discharges 9 | . . . . . . 2 . . . . 1 6 Parts Rejected 1 | . . . . . . 1 . . . . . . Data Loss (minor) 3 | . . . . . 1 1 . . . . 1 . Data Loss (major) 1 | . . . . . . 1 . . . . . . Misfires 2 | . . . . . . . . . . . . 2 Alerts 2 | . . . . . . 1 . . . . . 1 Overload Shots . | . . . . . . . . . . . . . Overflow Damage 177 | . . 11 . 17 42 . 31 . 6 49 . 21 Projectiles 39 | . . . . . . . 13 . . 5 . 21 Explosions 138 | . . 11 . 17 42 . 18 . 6 44 . . Melee . | . . . . . . . . . . . . . Knockbacks 13 | . . . . . . . . . . 1 4 8 Impact . | . . . . . . . . . . . . . Kinetic 12 | . . . . . . . . . . 1 3 8 Secondary 1 | . . . . . . . . . . . 1 . Self-Inflicted Damage 814 | . . 153 9 58 148 14 . . 306 126 . . Shots 27 | . . 3 1 3 8 1 . . 7 4 . . Rammed 10 | . 1 . . . . 4 . . 1 2 2 . Targets Rammed 12 | . 1 . . . . 6 . . 1 2 2 . Kicked . | . . . . . . . . . . . . . Crushed 2 | . . . . . . 2 . . . . . . Highest Temperature 331 | . . 24 . 99 209 216 57 . 23 270 199 331 Average Temperature 62 | . . 10 . 41 29 49 27 . 19 67 47 156 Received Heat Transfer 3544 | . . 81 . 198 585 351 99 . 48 741 685 756 Effects 3 | . . . . . . . . . . 3 . . Interference 3 | . . . . . . . . . . 3 . . Siege Activations . | . . . . . . . . . . . . . Martial Activations . | . . . . . . . . . . . . . Shielding Activations . | . . . . . . . . . . . . . Robots Disrupted . | . . . . . . . . . . . . . Combat Hostiles . | . . . . . . . . . . . . . Robots Corrupted . | . . . . . . . . . . . . . Combat Hostiles . | . . . . . . . . . . . . . Parts Fried 6 | . . 1 . . . 2 2 . 1 . . . Impact Corruptions . | . . . . . . . . . . . . . Robots Melted 3 | . . . . 1 2 . . . . . . . Combat Hostiles 3 | . . . . 1 2 . . . . . . . Parts Melted 15 | . . . . 6 7 2 . . . . . . Heat Transferred 6741 | 100 25 150 . 999 3699 518 . . 50 444 74 682 Parts Sabotaged . | . . . . . . . . . . . . . Parts Stolen . | . . . . . . . . . . . . . Parts Stripped . | . . . . . . . . . . . . . Power Chain Reactions 3 | . . 3 . . . . . . . . . . Alert | -11 -10 -9 -9 -8 -8 -8 -7 -7 -7 -7 -6 -6 ------- Run | Yrd Mat Mat Min Mat Gar Mat Fac Was Fac Gar Fac Gar Maximum Alert Level 4 | . . . . 1 4 2 1 . 1 2 2 1 Low Security (%) 38 | 100 100 100 100 72 2 . 20 100 95 10 . . Level 1 30 | . . . . 27 8 . 79 . 4 48 66 100 Level 2 15 | . . . . . 16 100 . . . 41 33 . Level 3 9 | . . . . . 44 . . . . . . . Level 4 6 | . . . . . 29 . . . . . . . Level 5 . | . . . . . . . . . . . . . High Security . | . . . . . . . . . . . . . Max Security . | . . . . . . . . . . . . . Peak Influence 1356 | 5 18 188 46 274 1356 679 353 105 213 631 442 283 Initial 661 | . . . 46 . 178 661 276 105 10 132 331 231 Average 355 | 1 . 90 7 113 868 628 261 60 47 379 359 257 Influence Increases 4325 | 10 22 461 30 403 1238 314 304 . 336 679 311 217 Destroy 0b10 Robot/C 2240 | . . 240 20 140 620 160 200 . 120 380 160 200 Destroy 0b10 Robot/NC 140 | 10 . 25 . 35 . 15 20 . 25 . 10 . Destroy Leader 346 | . . 46 . 58 20 44 34 . 62 20 52 10 Allied During Kill 36 | . . . . . . . . . . 9 26 1 Successful Hack 53 | . 22 15 . 10 . 4 2 . . . . . Disable Machine 255 | . . 45 . 60 15 15 . . 60 . 60 . Anti-Garrison Action 450 | . . . . . 300 . . . . 150 . . Destroy Structure 655 | . . 45 10 100 208 76 48 . 69 90 3 6 Lose Combat Pursuer 150 | . . 45 . . 75 . . . . 30 . . Influence Decreases 4057 | 10 22 342 149 129 156 1061 611 287 162 237 612 279 Entered New Map 1855 | . . . 73 . 96 695 333 197 5 57 300 99 Time Decay 1336 | 10 22 242 40 119 . 206 278 50 147 . 222 . Lost Part 596 | . . 100 36 10 60 10 . 20 10 140 50 160 Lost Ally 120 | . . . . . . . . 20 . 40 40 20 Purge Threat 150 | . . . . . . 150 . . . . . . Squads Dispatched 20 | . . 1 . 4 . 3 2 . 4 . 6 . Investigation 3 | . . . . . . 3 . . . . . . Extermination 3 | . . . . . . . . . 2 . 1 . Reinforcement 8 | . . 1 . 1 . . 2 . 2 . 2 . Assault . | . . . . . . . . . . . . . Garrison 6 | . . . . 3 . . . . . . 3 . Intercept . | . . . . . . . . . . . . . Searches Triggered . | . . . . . . . . . . . . . Construction Impeded 4 | . . . . 1 . . 1 . 1 . 1 . Haulers Reinforced . | . . . . . . . . . . . . . Active Scanning Responses . | . . . . . . . . . . . . . Cargo Convoy Interrupts . | . . . . . . . . . . . . . Stealth | -11 -10 -9 -9 -8 -8 -8 -7 -7 -7 -7 -6 -6 --------- Run | Yrd Mat Mat Min Mat Gar Mat Fac Was Fac Gar Fac Gar Distress Signals 4 | . 1 . . 2 . 1 . . . . . . Communications Jammed . | . . . . . . . . . . . . . Distress Signals . | . . . . . . . . . . . . . Times Spotted 180 | . 3 27 3 14 35 13 12 6 11 25 18 13 Peak Tracking Total 10 | . 4 5 3 4 7 6 4 6 1 6 10 5 Tactical Retreats 8 | . . 2 . . 4 . . . . 2 . . Traps | -11 -10 -9 -9 -8 -8 -8 -7 -7 -7 -7 -6 -6 ------- Run | Yrd Mat Mat Min Mat Gar Mat Fac Was Fac Gar Fac Gar Traps Triggered 14 | . 2 . . . 4 2 1 . . 3 1 1 Indirectly . | . . . . . . . . . . . . . Trap Hack Attempts . | . . . . . . . . . . . . . Triggered . | . . . . . . . . . . . . . Disarmed . | . . . . . . . . . . . . . Reprogrammed . | . . . . . . . . . . . . . Reused . | . . . . . . . . . . . . . Traps Extracted . | . . . . . . . . . . . . . Installed . | . . . . . . . . . . . . . Triggered . | . . . . . . . . . . . . . Most Traps Carried 2 | . . . 2 2 . . . . . . . . Machines | -11 -10 -9 -9 -8 -8 -8 -7 -7 -7 -7 -6 -6 ---------- Run | Yrd Mat Mat Min Mat Gar Mat Fac Was Fac Gar Fac Gar Machines Disabled 22 | . . 3 . 4 4 1 . . 4 2 4 . Max in Single Turn 3 | . . 3 . 1 1 1 . . 2 1 1 . Garrison Relay 6 | . . . . . 3 . . . . 2 . 1 Machines Repaired . | . . . . . . . . . . . . . Machines Dismantled . | . . . . . . . . . . . . . Machines Sabotaged . | . . . . . . . . . . . . . Overloaded Fab Kills . | . . . . . . . . . . . . . Hacking | -11 -10 -9 -9 -8 -8 -8 -7 -7 -7 -7 -6 -6 --------- Run | Yrd Mat Mat Min Mat Gar Mat Fac Was Fac Gar Fac Gar Machines Accessed 30 | . 5 3 . 4 3 4 3 . 3 2 3 . Terminals 22 | . 4 2 . 2 3 4 1 . 2 2 2 . Fabricators 1 | . . . . . . . 1 . . . . . Repair Stations 2 | . . 1 . 1 . . . . . . . . Recycling Units 1 | . 1 . . . . . . . . . . . Scanalyzers 1 | . . . . . . . 1 . . . . . Garrison Access 3 | . . . . 1 . . . . 1 . 1 . Total Hacks 71 | . 16 9 . 9 5 18 4 . 4 3 3 . Successful 30 | . 9 4 . 4 2 5 2 . 2 1 1 . Failed 41 | . 7 5 . 5 3 13 2 . 2 2 2 . Catastrophic 10 | . 1 2 . 1 1 1 1 . 2 . 1 . Database Lockouts . | . . . . . . . . . . . . . Manual 36 | . 11 4 . 5 1 10 1 . 2 . 2 . Terminals 55 | . 15 4 . 5 5 18 1 . 2 3 2 . Fabricators 1 | . . . . . . . 1 . . . . . Repair Stations 6 | . . 5 . 1 . . . . . . . . Recycling Units 1 | . 1 . . . . . . . . . . . Scanalyzers 2 | . . . . . . . 2 . . . . . Garrison Access 6 | . . . . 3 . . . . 2 . 1 . Terminal Hacks 9 | . 5 . . . 2 1 . . . 1 . . Prototype ID Bank 1 | . 1 . . . . . . . . . . . Open Door 1 | . . . . . 1 . . . . . . . Branch Access Points 1 | . 1 . . . . . . . . . . . Unreport Threat 1 | . . . . . . 1 . . . . . . Registered Components 1 | . 1 . . . . . . . . . . . Zone Layout 2 | . 2 . . . . . . . . . . . Garrison Registry 2 | . . . . . 1 . . . . 1 . . Fabricator Hacks . | . . . . . . . . . . . . . Repair Station Hacks 3 | . . 2 . 1 . . . . . . . . Scan Component 1 | . . 1 . . . . . . . . . . Repair 1 | . . 1 . . . . . . . . . . Refit 1 | . . . . 1 . . . . . . . . Recycling Unit Hacks 1 | . 1 . . . . . . . . . . . Report Inventory 1 | . 1 . . . . . . . . . . . Scanalyzer 2 | . . . . . . . 2 . . . . . Insert Component 1 | . . . . . . . 1 . . . . . Analyze 1 | . . . . . . . 1 . . . . . Garrison Access Hacks 4 | . . . . 1 . . . . 2 . 1 . Unlock Access 3 | . . . . 1 . . . . 1 . 1 . Coupler Status 1 | . . . . . . . . . 1 . . . Unauthorized Hacks 11 | . 3 2 . 2 . 4 . . . . . . Terminals 11 | . 3 2 . 2 . 4 . . . . . . Botnet 11 | . 3 2 . 2 . 4 . . . . . . Fabricators . | . . . . . . . . . . . . . Repair Stations . | . . . . . . . . . . . . . Recycling Units . | . . . . . . . . . . . . . Scanalyzers . | . . . . . . . . . . . . . Garrison Access . | . . . . . . . . . . . . . Data Cores Recovered 1 | . . 1 . . . . . . . . . . Used . | . . . . . . . . . . . . . Hacking Detections 27 | . 4 3 . 3 2 4 3 . 3 2 3 . Full Trace Events 6 | . 1 . . . 1 3 . . . 1 . . Feedback Events 1 | . . . . . . . . . . 1 . . Corruption 1 | . . . . . . . . . . 1 . . Feedback Blocked . | . . . . . . . . . . . . . Robot Schematics Acquired . | . . . . . . . . . . . . . Robots Built . | . . . . . . . . . . . . . Authchips . | . . . . . . . . . . . . . Time . | . . . . . . . . . . . . . Total Robot Build Rating . | . . . . . . . . . . . . . Part Schematics Acquired 1 | . . . . . . . 1 . . . . . Parts Built . | . . . . . . . . . . . . . Authchips . | . . . . . . . . . . . . . Time . | . . . . . . . . . . . . . Total Part Build Rating . | . . . . . . . . . . . . . Parts Repaired 1 | . . 1 . . . . . . . . . . Time 26 | . . 26 . . . . . . . . . . Parts Recycled . | . . . . . . . . . . . . . Recycled Matter . | . . . . . . . . . . . . . Retrieved Matter . | . . . . . . . . . . . . . Retrieved Components . | . . . . . . . . . . . . . Parts Scanalyzed 1 | . . . . . . . 1 . . . . . Part Schematics Acquired 1 | . . . . . . . 1 . . . . . Parts Damaged . | . . . . . . . . . . . . . Bothacking | -11 -10 -9 -9 -8 -8 -8 -7 -7 -7 -7 -6 -6 ------------ Run | Yrd Mat Mat Min Mat Gar Mat Fac Was Fac Gar Fac Gar Used RIF Installer 2 | . . . . . 1 . . . . . . 1 Program Shield 1 | . . . . . . . . . . . . 1 Robots Hacked 7 | . . . . . . . . . 1 2 2 2 Non-combat 1 | . . . . . . . . . 1 . . . Combat 6 | . . . . . . . . . . 2 2 2 Robot Hacks Applied 9 | . . . . . . . . . 1 4 2 2 find_shortcuts 1 | . . . . . . . . . . 1 . . spike_heat 1 | . . . . . . . . . . . 1 . overload_power 3 | . . . . . . . . . 1 2 . . overwrite_iff 3 | . . . . . . . . . . . 1 2 formatsys_high 1 | . . . . . . . . . . 1 . . Relay Couplers Released 23 | . . . . . 12 . . . . 6 . 5 Machine Destruction 23 | . . . . . 12 . . . . 6 . 5 Attached 5 | . . . . . . . . . 1 2 1 1 Fabnet Peak Effective % . | . . . . . . . . . . . . . Robots Rewired . | . . . . . . . . . . . . . Allies Hacked 1 | . . . . . . . . . . . 1 . Hacks Repelled . | . . . . . . . . . . . . . Allies | -11 -10 -9 -9 -8 -8 -8 -7 -7 -7 -7 -6 -6 -------- Run | Yrd Mat Mat Min Mat Gar Mat Fac Was Fac Gar Fac Gar Total Allies 7 | . . . . . . . . 1 . 3 1 2 Largest Group 2 | . . . . . . . . 1 . 2 1 1 Highest-Rated Group 190 | . . . . . . . . 31 . 190 95 41 Highest-Rated Ally 95 | . . . . . . . . 31 . 95 95 41 Total Orders . | . . . . . . . . . . . . . Ally Attacks 45 | . . . . . . . . 7 . 15 19 4 Total Damage 2061 | . . . . . . . . 145 . 741 1075 100 Kills 10 | . . . . . . . . . . 3 7 . Allies Corrupted . | . . . . . . . . . . . . . Allies Melted . | . . . . . . . . . . . . . Intel | -11 -10 -9 -9 -8 -8 -8 -7 -7 -7 -7 -6 -6 ------- Run | Yrd Mat Mat Min Mat Gar Mat Fac Was Fac Gar Fac Gar Active Infowar (turns) 1110 | 17 316 773 4 . . . . . . . . . Seismic 1110 | 17 316 773 4 . . . . . . . . . Robot Analysis Total . | . . . . . . . . . . . . . Derelict Logs Recovered 1 | . . . 1 . . . . . . . . . Drone Launches . | . . . . . . . . . . . . . Drone Recoveries . | . . . . . . . . . . . . . Exploration | -11 -10 -9 -9 -8 -8 -8 -7 -7 -7 -7 -6 -6 ------------- Run | Yrd Mat Mat Min Mat Gar Mat Fac Was Fac Gar Fac Gar Turns Passed 7908 | 149 316 773 206 354 1693 437 608 109 1015 914 462 872 Spaces Moved 3623 | 80 164 408 182 147 841 172 340 74 506 325 194 190 Core 42 | 22 3 . . . . . . . . 17 . . Treads 1694 | 58 132 . . 124 841 172 216 45 . 18 33 55 Legs 546 | . 29 363 . . . . . . . . 19 135 Wheels 1341 | . . 45 182 23 . . 124 29 506 290 142 . Hover . | . . . . . . . . . . . . . Flight . | . . . . . . . . . . . . . Fastest Speed 50 | 50 160 105 96 96 152 155 145 145 130 130 130 232 Average Speed 172 | 129 171 128 103 151 159 208 161 147 174 191 192 368 Slowest Speed 1200 | 160 500 260 120 163 163 240 228 225 180 1200 540 470 Overloaded Moves . | . . . . . . . . . . . . . Propulsion Burnouts . | . . . . . . . . . . . . . Robots Hopped . | . . . . . . . . . . . . . Potential Cave-ins . | . . . . . . . . . . . . . Cave-ins Triggered . | . . . . . . . . . . . . . Exploration Rate (%) 31 | 6 28 41 41 17 79 27 8 73 16 49 8 20 Regions Visited 12 Branch Regions 1 Pre-discovered Areas . | . . . . . . . . . . . . . Known Exits Taken 3 | . . . . 1 . . . . 1 . 1 . Unknown Exits Taken 5 | 1 1 1 1 . . 1 . . . . . . Scrap Searched 1 | . . . 1 . . . . . . . . . Spaces Dug 7 | . . . . . 7 . . . . . . . Terrain Destroyed 840 | . . 48 12 101 331 79 68 . 74 126 . 1 Melee . | . . . . . . . . . . . . . Projectile 2 | . . . . . . . . . . 1 . 1 AOE 838 | . . 48 12 101 331 79 68 . 74 125 . . Terrain Rammed . | . . . . . . . . . . . . . Walls Destroyed . | . . . . . . . . . . . . . Machines Disabled . | . . . . . . . . . . . . . Actions | -11 -10 -9 -9 -8 -8 -8 -7 -7 -7 -7 -6 -6 --------- Run | Yrd Mat Mat Min Mat Gar Mat Fac Was Fac Gar Fac Gar Total 4611 | 106 198 549 197 231 1023 223 380 74 590 517 251 272 Wait 197 | . 13 36 3 10 26 6 3 . 10 84 6 . Move 3614 | 79 163 407 181 147 839 171 340 73 506 324 194 190 Hop . | . . . . . . . . . . . . . Pick Up 146 | 10 13 9 5 15 22 6 11 . 15 23 7 10 Fast Attach 9 | 1 . . 1 3 . 3 . . . . 1 . Attach 77 | 6 2 11 6 3 7 1 5 1 7 14 4 10 Detach 2 | . . . . 1 . . . . 1 . . . Swap 77 | 1 2 . . 10 23 3 4 . 11 10 10 3 Drop 77 | . 3 2 . 14 16 8 4 . 10 10 9 1 Fire 390 | 9 1 84 1 28 89 19 13 . 29 48 18 51 Melee 4 | . . . . . . . . . . 2 . 2 Ram 3 | . . . . . . . . . 1 2 . . Kick . | . . . . . . . . . . . . . Crush 9 | . 1 . . . . 6 . . . . 2 . Escape Stasis 6 | . . . . . 1 . . . . . . 5 Rewire . | . . . . . . . . . . . . . Trap . | . . . . . . . . . . . . . Miscellaneous . | . . . . . . . . . . . . . Route ------- -11/Scrapyard -10/Materials (discovered 2 exits: *Mat / Min) -9/Materials -9/Mines -8/Materials (discovered 2 exits: Sto / Gar) -8/Garrison (discovered 4 exits: *Mat x4) -8/Materials (discovered 2 exits: *Fac / *Sto) -7/Factory -7/Waste -7/Factory -7/Garrison (discovered 3 exits: *Fac x3) -6/Factory -6/Garrison History --------- Turn | Location | Event 16 | -11/Scrapyard | Discovered new exit (range 15) 150 | -11/Scrapyard | Entered Materials 236 | -10/Materials | Identified exit to Mines 311 | -10/Materials | Build established: Mutant 450 | -10/Materials | Discovered new exit (range 8) 466 | -10/Materials | Entered another Materials area 466 | -9/Materials | Evolved 2 slots: Propulsion x1, Utility x1 636 | -9/Materials | Repaired Heat Sink 774 | -9/Materials | Discovered new exit (range 12) 991 | -9/Materials | Lost 3 parts (1u2w) 1116 | -9/Materials | Lost 3 parts (2n1w) 1239 | -9/Materials | Entered Mines 1250 | -9/Mines | Core integrity fell below 50% 1275 | -9/Mines | Received a Rocket Launcher from a helpful Derelict 1293 | -9/Mines | Lost 5 parts (1p1n1u2w) 1327 | -9/Mines | Found a hidden stash of uninstalled traps 1388 | -9/Mines | Discovered new exit (range 10) 1445 | -9/Mines | Entered Materials 1445 | -8/Materials | Evolved 2 slots: Utility x2 1446 | -8/Materials | Identified exit to Storage 1799 | -8/Materials | Identified exit to Garrison 1799 | -8/Materials | Entered Garrison 1889 | -8/Garrison | Garrison Relay disabled 1984 | -8/Garrison | Triggered checkpoint 2272 | -8/Garrison | Discovered new exit (range 10) 2295 | -8/Garrison | Triggered checkpoint 2325 | -8/Garrison | Garrison Relay disabled 2862 | -8/Garrison | Core integrity fell below 50% 2938 | -8/Garrison | Discovered new exit (range 10) 3155 | -8/Garrison | Triggered checkpoint 3205 | -8/Garrison | Garrison Relay disabled 3264 | -8/Garrison | Discovered new exit (range 59) 3264 | -8/Garrison | Discovered new exit (range 26) 3264 | -8/Garrison | Discovered new exit (range 43) 3264 | -8/Garrison | Discovered new exit (range 40) 3308 | -8/Garrison | Triggered checkpoint 3459 | -8/Garrison | Installed Relay Interface Framework 3492 | -8/Garrison | Entered Materials 3749 | -8/Materials | Discovered exit to Storage (range 8) 3893 | -8/Materials | Discovered new exit (range 4) 3929 | -8/Materials | Entered Factory 3929 | -7/Factory | Evolved 2 slots: Propulsion x1, Utility x1 4537 | -7/Factory | Sucked down chute 4537 | -7/Factory | Entered Waste 4538 | -7/Waste | Met a frightened Derelict 4546 | -7/Waste | Spotted C-40 Crusher 4549 | -7/Waste | Spotted C-40 Crusher 4550 | -7/Waste | Spotted C-40 Crusher 4578 | -7/Waste | Spotted C-40 Crusher 4592 | -7/Waste | Spotted C-40 Crusher 4600 | -7/Waste | Crushed by Compactor (1 part destroyed, 2 dropped) 4603 | -7/Waste | Crushed by Compactor (1 part destroyed, 2 dropped) 4608 | -7/Waste | Spotted C-40 Crusher 4624 | -7/Waste | Discovered new exit (range 15) 4646 | -7/Waste | Entered Factory 5661 | -7/Factory | Identified exit to Garrison 5661 | -7/Factory | Entered Garrison 5690 | -7/Garrison | Spotted B-75 Beast 5713 | -7/Garrison | Triggered checkpoint 5753 | -7/Garrison | Lost 3 parts (2n1u) 5756 | -7/Garrison | Garrison Relay disabled 5846 | -7/Garrison | Destroyed B-75 Beast 5900 | -7/Garrison | Triggered checkpoint 5967 | -7/Garrison | Core integrity fell below 50% 6009 | -7/Garrison | Lost 9 parts (1p1n4u3w) 6056 | -7/Garrison | Build established: Bothacker-Mutant 6157 | -7/Garrison | Discovered new exit (range 55) 6157 | -7/Garrison | Discovered new exit (range 33) 6157 | -7/Garrison | Discovered new exit (range 56) 6295 | -7/Garrison | Triggered checkpoint 6329 | -7/Garrison | Found embedded Infiltrators 6386 | -7/Garrison | Garrison Relay disabled 6569 | -7/Garrison | Assembled breached garrison interior 6575 | -7/Garrison | Entered Factory 6575 | -6/Factory | Accompanied by 1 ally 6575 | -6/Factory | Evolved 2 slots: Power x1, Utility x1 6789 | -6/Factory | Garrison activated, responded to threat 7037 | -6/Factory | Identified exit to Garrison 7037 | -6/Factory | Entered Garrison 7051 | -6/Garrison | Lost 3 parts (3u) 7079 | -6/Garrison | Triggered checkpoint 7157 | -6/Garrison | Expanded RIF knowledge: Program Shield 7191 | -6/Garrison | Triggered checkpoint 7192 | -6/Garrison | Garrison Relay disabled 7278 | -6/Garrison | Lost 7 parts (1p3n3u) 7849 | -6/Garrison | Triggered checkpoint 7869 | -6/Garrison | Core integrity fell below 50% 7894 | -6/Garrison | Core integrity fell below 20% 7909 | -6/Garrison | Destroyed by Y-54 Guardian with Flak Gun Last Messages --------------- 07795_ System corrupted: Hvy. Laser misfires. 07849_ Beams of light sweep through the air. An alarm sounds. 07856_ Y-54 Guardian suffers critical hit (Burn). 07858_ Fission Core destroyed. 07862_ Lgt. Fission Core destroyed. 07865_ Carbon-fiber Leg destroyed. 07871_ Hvy. Laser destroyed. 07872_ Y-54 Guardian destroyed. 07874_ Y-54 Guardian Imp. Light Armor Plating blasted off. 07876_ Y-54 Guardian Flak Gun blasted off. 07880_ Y-54 Guardian destroyed. 07886_ Mni. Assault Cannon destroyed. 07890_ Adv. Heat Sink destroyed. 07890_ Slug penetrates Y-54 Guardian. 07899_ Slug penetrates Wall. 07902_ Y-54 Guardian destroyed. 07906_ System corrupted: Heat flow error (+163). Map ----- +----------------------------------------------------+ | ???????? ????????????????????????????????????? | | ?????????? ???????????????????????????????????? | | ?????#?????# ??????????????????????????????????# | | ????## ## ################################# # | | ? # # | | ? " | | ? ######## #################### # | | ????##""""###?????????# #??????????????????# ## | | ??????????????????????# #??????????????????# #?# | | ??????????????????????# #??????????????????# #?? | | ??????????????????????# #??????????????????# #?? | | ??????????????????????# #??????????????????# #?? | | ??????????????????????# #??????????????????# #?? | | ??????????????????????# #??????????????????# #?? | | ??????????????????????# #??????????????????# #?? | | ??????????????????????# #??????????????????# #?? | | ??????????????????????# #??????????????????# #?? | | ??????????????????????# #??????????????????# #?? | | ??????????????????????# #??????????????????# #?? | | ??????????????????????# #??????????????????# #?? | | ??????????????????????# #??????????????????# #?? | | ??????????????????????# #??????????????????# #?? | | ??????????????????????# #???????#####??????# #?? | | ??????????????????????# #???????# #??????# #?? | | ????????????????## [##Y%######### [ #########"#?? | | ???????????# %%!%%@ #?? | | ???????????# %!![= #?? | | ???????????# #########* #################### #?? | | ??????????????????????# #??????????????????# #?? | | ?????????????????????? ????????????????### ### | | ????????????????????? ! ????????????????# ## | | ????????????????????# ] ????????????????# | | ????????????????????# ""????????????????#% % ## | | ????????????????????# ""????????????????###% ### | | ????????????????????# ""??????????????????# #?? | | ????????????????????# ??????????????????# #?? | | ????????????????????# ????????????????????# ### | | ????????????????????# ????????????????????# %##" | | ????????????????????# ????????????????????# *### | | ????????????????????# ! ????????????????????# %[ | | ?????????????????????? ?????????????????????#!!! ^ | | ???????????????????????????????????????????##"+"## | | ???????????????????????????????????????????#%[! ## | | ???????????????????????????????????????????#%= ## | | ???????????????????????????????????????????###"### | | ?????????????????????????????????????????????# | | ?????????????????????????????????????????????##### | | ?????????????????????????????????????????????????? | | ?????????????????????????????????????????????????? | | ?????????????????????????????????????????????????? | +----------------------------------------------------+ Best States ------------- Heat Dissipation 56 Energy Generation 31 Energy Capacity 520 Matter Stores 300 Matter Capacity 300 Sight Range 16 Terrain Scan Density 10 Armor Coverage 750 Resistance: KI 30 Power Shielding 33 Utility Shielding 33 Weapon Shielding 66 Evasion (%) 55 Targeting Accuracy 8 Recoil Reduction 4 Matter Filtering 30 Salvage Targeting 1 Relay Coupler Types 3 Relay Coupler Value 31 Item Schematics ----------------- Med. Treads | -7/Factory | Scanalyzed Robot Schematics ------------------ None Fabricated ------------ Nothing Repaired ---------- Heat Sink | 46% | -9/Materials Alien Tech Used ----------------- None Achievements -------------- Assimilation Complete Error 47 Challenges ------------ None Game ------ Seed MappingLayeredChainsaw Manual? 0 Play Time 01:13:28 Cumulative 43.7 hours Start 2025.07.24 @ 01:41:55 End 2025.07.24 @ 02:55:00 Sessions 1 Manual Loads 0 Difficulty Rogue Special Mode None Game No. 106 Rogue 106 Adventurer 0 Explorer 0 Win Type - Total 0 Types 0/0/0/0/0/0/0/0/0/0 Lore% 38 Gallery% 36 Achievement% 30 Wizard Run 0 Options --------- Layout 1 ASCII 0 Keyboard 0 Movement Mouse Keybinds 0 Fullscreen 1 Font 24/Smallcaps Map View 50x35 Zoom Use 0% Tactical HUD 1 Map Filters NONE Filters NONE Steam 1 RUN: e17b3dc8-5443-465b-a36c-9e9e164f959a